fUST/lending_fUST_20240814
["ID","MTS","AMOUNT","RATE_DAILY","PERIOD"]
[334797760,1723579843071,-151.0,0.00013699,2]
[334797761,1723579843081,-1131.46,0.00013699,2]
[334797762,1723579843092,-1131.46,0.00013699,2]
[334797763,1723579843102,-1131.46,0.00013699,2]
[334797764,1723579843112,-1131.46,0.00013699,2]
[334797765,1723579843122,-1131.46,0.00013699,2]
[334797766,1723579843133,-1131.60227301,0.00013699,2]
[334797767,1723579843142,-151.0,0.000137,2]
[334797768,1723579843151,-16305.56528498,0.000137,2]
[334797769,1723579843160,-2526.74153836,0.000137,2]
[334797770,1723579843169,-192.63672488,0.000137,2]
[334797771,1723579843180,-155.04638137,0.000137,2]
[334797772,1723579843191,-1384.50193288,0.000137,2]
[334797773,1723579843209,-1670.74719108,0.000137,2]
[334797774,1723579843220,-218.59781191,0.000137,2]
[334797775,1723579843230,-2111.27572321,0.000137,2]
[334797776,1723579843240,-158.63524894,0.000137,2]
[334797777,1723579843250,-66595.32037429,0.000137,2]
[334797779,1723579843261,-1413.68526537,0.000137,2]
[334797780,1723579843272,-3606.1291612,0.000137,2]
[334797781,1723579843283,-3789.92883134,0.000137,2]
[334797782,1723579843294,-19485.9384109,0.000137,2]
[334797783,1723579843304,-405.19320777,0.000137,2]
[334797784,1723579843314,-151.0,0.000137,2]
[334797785,1723579843325,-151.0,0.000137,2]
[334797786,1723579843336,-150.112233,0.000137,2]
[334797787,1723579843346,-150.112233,0.000137,2]
[334797788,1723579843358,-1489.354474,0.000137,2]
[334797789,1723579843369,-1489.354474,0.000137,2]
[334797790,1723579843379,-1489.354474,0.000137,2]
[334797791,1723579843389,-1489.354474,0.000137,2]
[334797792,1723579843400,-995.536604,0.000137,2]
[334797793,1723579843410,-995.536604,0.000137,2]
[334797794,1723579843419,-151.0,0.000137,2]
[334797795,1723579843429,-995.536604,0.000137,2]
[334797796,1723579843440,-995.536604,0.000137,2]
[334797797,1723579843451,-184.531573,0.000137,2]
[334797798,1723579843461,-184.531573,0.000137,2]
[334797799,1723579843469,-151.0,0.000137,2]
[334797800,1723579843479,-151.0,0.000137,2]
[334797801,1723579843490,-151.0,0.000137,2]
[334797802,1723579843500,-1077.260719,0.000137,2]
[334797803,1723579843510,-1077.260719,0.000137,2]
[334797804,1723579843521,-151.0,0.000137,2]
[334797805,1723579843532,-159.832493,0.000137,2]
[334797806,1723579843543,-151.0,0.000137,2]
[334797807,1723579843553,-159.832493,0.000137,2]
[334797808,1723579843564,-1144.447742,0.000137,2]
[334797809,1723579843575,-1144.447742,0.000137,2]
[334797810,1723579843587,-151.0,0.000137,2]
[334797811,1723579843597,-155.78099207,0.000137,4]
[334797812,1723579843608,-1111.760975,0.000137,2]
[334797813,1723579843619,-1111.760975,0.000137,2]
[334797814,1723579843630,-1133.305617,0.000137,2]
[334797815,1723579843640,-2878.155826,0.000137,2]
[334797816,1723579843650,-2052.074848,0.000137,2]
[334797817,1723579843660,-1133.305617,0.000137,2]
[334797818,1723579843672,-2878.155826,0.000137,2]
[334797819,1723579843682,-2052.074848,0.000137,2]
[334797820,1723579843693,-151.0,0.000137,2]
[334797821,1723579843704,-151.0,0.000137,2]
[334797822,1723579843715,-151.0,0.000137,2]
[334797823,1723579843725,-2905.135415,0.000137,2]
[334797824,1723579843735,-2905.135415,0.000137,2]
[334797825,1723579843744,-946.361537,0.000137,2]
[334797826,1723579843754,-151.0,0.000137,2]
[334797828,1723579843763,-946.361537,0.000137,2]
[334797830,1723579843773,-151.0,0.000137,2]
[334797833,1723579843782,-229.725668,0.000137,2]
[334797836,1723579843792,-229.725668,0.000137,2]
[334797839,1723579843802,-151.0,0.000137,2]
[334797842,1723579843812,-571.646571,0.000137,2]
[334797844,1723579843822,-571.646571,0.000137,2]
[334797846,1723579843832,-151.0,0.000137,2]
[334797848,1723579843841,-415.615144,0.000137,2]
[334797850,1723579843851,-151.0,0.000137,2]
[334797852,1723579843860,-415.615144,0.000137,2]
[334797853,1723579843872,-1832.878838,0.000137,2]
[334797854,1723579843881,-150.112233,0.000138,2]
[334797855,1723579843891,-150.112233,0.000138,2]
[334797856,1723579843902,-150.112233,0.000139,2]
[334797857,1723579843912,-150.112233,0.000139,2]
[334797858,1723579843922,-150.112233,0.000139,2]
[334797859,1723579843931,-151.0,0.00013941,2]
[334797860,1723579843942,-151.0,0.00013941,2]
[334797861,1723579843952,-151.0,0.00013941,2]
[334797862,1723579843962,-151.0,0.00013941,2]
[334797863,1723579843971,-151.0,0.00013941,2]
[334797864,1723579843980,-151.0,0.00013941,2]
[334797865,1723579843989,-223.427159,0.00013941,2]
[334797866,1723579843999,-223.427159,0.00013941,2]
[334797867,1723579844011,-190.564051,0.00013941,2]
[334797868,1723579844020,-190.564051,0.00013941,2]
[334797869,1723579844031,-221.21541,0.0001395,2]
[334797870,1723579844044,-221.21541,0.0001395,2]
[334797871,1723579844055,-151.0,0.0001395,2]
[334797872,1723579844067,-250.94975,0.0001395,2]
[334797873,1723579844076,-1653.002827,0.0001395,2]
[334797874,1723579844086,-1653.002827,0.0001395,2]
[334797875,1723579844098,-224.887206,0.0001395,2]
[334797876,1723579844109,-168.356429,0.0001395,2]
[334797877,1723579844120,-213.97388,0.0001395,2]
[334797878,1723579844131,-168.356429,0.0001395,2]
[334797879,1723579844143,-151.0,0.00013962,2]
[334797880,1723579844155,-151.0,0.00013962,2]
[334797881,1723579844165,-151.0,0.00013962,2]
[334797882,1723579844177,-151.0,0.00013962,2]
[334797883,1723579844187,-151.0,0.00013962,2]
[334797884,1723579844199,-248.424075,0.00013962,2]
[334797885,1723579844209,-223.427159,0.00013962,2]
[334797886,1723579844219,-223.427159,0.00013962,2]
[334797887,1723579844229,-221.21541,0.00013962,2]
[334797888,1723579844239,-221.21541,0.00013962,2]
[334797889,1723579844250,-1653.002827,0.00013962,2]
[334797890,1723579844260,-1653.002827,0.00013962,2]
[334797891,1723579844272,-224.887206,0.00013962,2]
[334797892,1723579844282,-168.356429,0.00013962,2]
[334797893,1723579844291,-168.356429,0.00013962,2]
[334797894,1723579844301,-184.531573,0.00013962,2]
[334797895,1723579844310,-184.531573,0.00013962,2]
[334797896,1723579844321,-151.0,0.00013962,2]
[334797897,1723579844331,-151.0,0.00013962,2]
[334797899,1723579844474,-151.0,0.00013962,2]
[334797900,1723579844485,-1077.260719,0.00013962,2]
[334797901,1723579844495,-1077.260719,0.00013962,2]
[334797902,1723579844505,-151.0,0.00013962,2]
[334797903,1723579844516,-159.832493,0.00013962,2]
[334797904,1723579844525,-151.0,0.00013962,2]
[334797905,1723579844536,-159.832493,0.00013962,2]
[334797906,1723579844546,-1144.447742,0.00013962,2]
[334797907,1723579844557,-1144.447742,0.00013962,2]
[334797908,1723579844566,-179.592929,0.00013962,2]
[334797909,1723579844576,-1111.760975,0.00013962,2]
[334797910,1723579844591,-1111.760975,0.00013962,2]
[334797911,1723579844601,-1133.305617,0.00013962,2]
[334797912,1723579844610,-2878.155826,0.00013962,2]
[334797913,1723579844619,-2052.074848,0.00013962,2]
[334797914,1723579844628,-1133.305617,0.00013962,2]
[334797915,1723579844637,-2878.155826,0.00013962,2]
[334797916,1723579844647,-2052.074848,0.00013962,2]
[334797917,1723579844658,-151.0,0.00013962,2]
[334797918,1723579844670,-151.0,0.00013962,2]
[334797919,1723579844681,-151.0,0.00013962,2]
[334797920,1723579844691,-2905.135415,0.00013962,2]
[334797921,1723579844702,-2905.135415,0.00013962,2]
[334797922,1723579844711,-946.361537,0.00013962,2]
[334797923,1723579844721,-151.0,0.00013962,2]
[334797924,1723579844734,-946.361537,0.00013962,2]
[334797925,1723579844745,-229.725668,0.00013962,2]
[334797926,1723579844754,-229.725668,0.00013962,2]
[334797927,1723579844764,-151.0,0.00013962,2]
[334797928,1723579844774,-571.646571,0.00013962,2]
[334797929,1723579844784,-571.646571,0.00013962,2]
[334797930,1723579844794,-415.615144,0.00013962,2]
[334797931,1723579844803,-151.0,0.00013962,2]
[334797932,1723579844813,-415.615144,0.00013962,2]
[334797933,1723579844823,-1832.878838,0.00013962,2]
[334797934,1723579844835,-151.0,0.00013971,2]
[334797935,1723579844846,-151.0,0.00013972,2]
[334797936,1723579844856,-190.564051,0.00013972,2]
[334797937,1723579844866,-190.564051,0.00013972,2]
[334797938,1723579844875,-500.0,0.00013972,2]
[334797939,1723579844885,-500.0,0.00013972,2]
[334797940,1723579844895,-500.0,0.00013972,2]
[334797941,1723579844905,-500.0,0.00013972,2]
[334797942,1723579844914,-500.0,0.00013972,2]
[334797943,1723579844923,-151.0,0.00013972,2]
[334797944,1723579844933,-151.0,0.00013972,2]
[334797945,1723579844942,-1489.354474,0.00013972,2]
[334797946,1723579844952,-1489.354474,0.00013972,2]
[334797947,1723579844961,-500.0,0.00013972,2]
[334797948,1723579844970,-500.0,0.00013972,2]
[334797949,1723579844979,-500.0,0.00013972,2]
[334797950,1723579844988,-500.0,0.00013972,2]
[334797951,1723579844998,-995.536604,0.00013972,2]
[334797952,1723579845007,-500.0,0.00013972,2]
[334797953,1723579845017,-995.536604,0.00013972,2]
[334797954,1723579845027,-793.54,0.00013972,2]
[334797955,1723579845037,-500.0,0.00013972,2]
[334797956,1723579845047,-500.0,0.00013972,2]
[334797957,1723579845056,-500.0,0.00013972,2]
[334797958,1723579845065,-500.0,0.00013972,2]
[334797959,1723579845075,-500.0,0.00013972,2]
[334797960,1723579845085,-500.0,0.00013972,2]
[334797961,1723579845094,-500.0,0.00013972,2]
[334797962,1723579845105,-500.0,0.00013972,2]
[334797963,1723579845114,-500.0,0.00013972,2]
[334797964,1723579845124,-500.0,0.00013972,2]
[334797965,1723579845133,-500.0,0.00013972,2]
[334797966,1723579845143,-500.0,0.00013972,2]
[334797967,1723579845153,-500.0,0.00013972,2]
[334797968,1723579845163,-500.0,0.00013972,2]
[334797969,1723579845173,-500.0,0.00013972,2]
[334797970,1723579845182,-500.0,0.00013972,2]
[334797971,1723579845192,-500.0,0.00013972,2]
[334797972,1723579845206,-500.0,0.00013972,2]
[334797973,1723579845216,-500.0,0.00013972,2]
[334797974,1723579845225,-500.0,0.00013972,2]
[334797975,1723579845235,-500.0,0.00013972,2]
[334797976,1723579845245,-552.76,0.00013972,2]
[334797977,1723579845255,-500.0,0.00013972,2]
[334797978,1723579845264,-500.0,0.00013972,2]
[334797979,1723579845277,-500.0,0.00013972,2]
[334797980,1723579845286,-500.0,0.00013972,2]
[334797981,1723579845296,-500.0,0.00013972,2]
[334797982,1723579845307,-1127.86,0.00013972,2]
[334797983,1723579845317,-500.0,0.00013972,2]
[334797984,1723579845327,-500.0,0.00013972,2]
[334797985,1723579845338,-500.0,0.00013972,2]
[334797986,1723579845347,-500.0,0.00013972,2]
[334797987,1723579845356,-500.0,0.00013972,2]
[334797988,1723579845367,-500.0,0.00013972,2]
[334797989,1723579845376,-500.0,0.00013972,2]
[334797990,1723579845385,-500.0,0.00013972,2]
[334797991,1723579845394,-500.0,0.00013972,2]
[334797992,1723579845403,-1599.8,0.00013972,2]
[334797993,1723579845414,-741.62,0.00013972,2]
[334797994,1723579845423,-513.51,0.00013972,2]
[334797995,1723579845433,-704.01,0.00013972,2]
[334797996,1723579845442,-250.34358349,0.00013972,2]
[334797997,1723579845452,-500.0,0.00013972,2]
[334797998,1723579845462,-500.0,0.00013972,2]
[334797999,1723579845472,-500.0,0.00013972,2]
[334798000,1723579845482,-500.0,0.00013972,2]
[334798001,1723579845491,-1730.45,0.00013972,2]
[334798002,1723579845501,-500.0,0.00013972,2]
[334798003,1723579845510,-500.0,0.00013972,2]
[334798004,1723579845519,-500.0,0.00013972,2]
[334798005,1723579845528,-500.0,0.00013972,2]
[334798006,1723579845538,-649.81,0.00013972,2]
[334798007,1723579845548,-1731.16,0.00013972,2]
[334798008,1723579845557,-500.0,0.00013972,2]
[334798009,1723579845567,-612.71,0.00013972,2]
[334798010,1723579845577,-318.48790665,0.00013972,2]
[334798011,1723579845587,-500.0,0.00013972,2]
[334798012,1723579845597,-292.09,0.00013972,2]
[334798013,1723579845606,-500.0,0.00013972,2]
[334798014,1723579845616,-500.0,0.00013972,2]
[334798015,1723579845625,-500.0,0.00013972,2]
[334798016,1723579845635,-646.21,0.00013972,2]
[334798017,1723579845644,-500.0,0.00013972,2]
[334798018,1723579845654,-500.0,0.00013972,2]
[334798019,1723579845664,-500.0,0.00013972,2]
[334798020,1723579845674,-475.12225368,0.00013972,2]
[334798021,1723579845684,-500.0,0.00013972,2]
[334798022,1723579845694,-578.07,0.00013972,2]
[334798023,1723579845703,-602.72,0.00013972,2]
[334798024,1723579845714,-151.0,0.00013972,2]
[334798025,1723579845724,-2213.88,0.00013972,2]
[334798026,1723579845735,-500.0,0.00013972,2]
[334798027,1723579845745,-680.25,0.00013972,2]
[334798028,1723579845755,-516.77,0.00013972,2]
[334798029,1723579845765,-500.0,0.00013972,2]
[334798030,1723579845775,-500.0,0.00013972,2]
[334798031,1723579845786,-500.0,0.00013972,2]
[334798032,1723579845795,-500.0,0.00013972,2]
[334798033,1723579845805,-500.0,0.00013972,2]
[334798034,1723579845815,-674.55,0.00013972,2]
[334798035,1723579845826,-517.91,0.00013972,2]
[334798036,1723579845837,-3475.53,0.00013972,2]
[334798037,1723579845856,-925.09,0.00013972,2]
[334798038,1723579845868,-941.99,0.00013972,2]
[334798039,1723579845878,-1333.61,0.00013972,2]
[334798040,1723579845888,-3175.1,0.00013972,2]
[334798041,1723579845897,-877.34,0.00013972,2]
[334798042,1723579845908,-584.7,0.00013972,2]
[334798043,1723579845918,-500.0,0.00013972,2]
[334798044,1723579845927,-500.0,0.00013972,2]
[334798045,1723579845938,-500.0,0.00013972,2]
[334798046,1723579845949,-500.0,0.00013972,2]
[334798047,1723579845959,-990.3,0.00013972,2]
[334798048,1723579845969,-151.0,0.00013972,2]
[334798049,1723579845979,-552.42,0.00013972,2]
[334798050,1723579845989,-500.0,0.00013972,2]
[334798051,1723579845999,-500.0,0.00013972,2]
[334798052,1723579846009,-504.67,0.00013972,2]
[334798053,1723579846018,-500.0,0.00013972,2]
[334798054,1723579846028,-500.0,0.00013972,2]
[334798055,1723579846038,-500.0,0.00013972,2]
[334798056,1723579846048,-581.74,0.00013972,2]
[334798057,1723579846057,-1832.878838,0.00013972,2]
[334798058,1723579846070,-184.531573,0.00013973,2]
[334798059,1723579846080,-184.531573,0.00013973,2]
[334798060,1723579846092,-151.0,0.00013973,2]
[334798061,1723579846101,-169.134639,0.00013973,2]
[334798062,1723579846112,-151.26329,0.00013973,2]
[334798063,1723579846122,-1077.260719,0.00013973,2]
[334798064,1723579846134,-1077.260719,0.00013973,2]
[334798065,1723579846143,-151.0,0.00013973,2]
[334798066,1723579846153,-159.832493,0.00013973,2]
[334798067,1723579846163,-151.0,0.00013973,2]
[334798068,1723579846173,-159.832493,0.00013973,2]
[334798069,1723579846184,-1144.447742,0.00013973,2]
[334798070,1723579846195,-1144.447742,0.00013973,2]
[334798071,1723579846207,-1111.760975,0.00013973,2]
[334798072,1723579846217,-1111.760975,0.00013973,2]
[334798073,1723579846226,-1133.305617,0.00013973,2]
[334798074,1723579846235,-2052.074848,0.00013973,2]
[334798075,1723579846246,-2878.155826,0.00013973,2]
[334798076,1723579846255,-1133.305617,0.00013973,2]
[334798077,1723579846265,-2878.155826,0.00013973,2]
[334798078,1723579846275,-2052.074848,0.00013973,2]
[334798079,1723579846284,-151.0,0.00013973,2]
[334798080,1723579846293,-151.0,0.00013973,2]
[334798081,1723579846303,-151.0,0.00013973,2]
[334798082,1723579846312,-2905.135415,0.00013973,2]
[334798083,1723579846321,-2905.135415,0.00013973,2]
[334798084,1723579846331,-946.361537,0.00013973,2]
[334798085,1723579846342,-151.0,0.00013973,2]
[334798086,1723579846351,-946.361537,0.00013973,2]
[334798087,1723579846360,-229.725668,0.00013973,2]
[334798088,1723579846370,-229.725668,0.00013973,2]
[334798089,1723579846379,-571.646571,0.00013973,2]
[334798090,1723579846388,-571.646571,0.00013973,2]
[334798091,1723579846398,-415.615144,0.00013973,2]
[334798092,1723579846407,-415.615144,0.00013973,2]
[334798093,1723579846417,-150.112233,0.00014,2]
[334798094,1723579846427,-150.112233,0.00014,2]
[334798095,1723579846436,-150.112233,0.000141,2]
[334798096,1723579846445,-150.112233,0.000141,2]
[334798097,1723579846454,-155.0,0.000141,2]
[334798098,1723579846463,-150.112233,0.000142,2]
[334798099,1723579846473,-150.112233,0.000142,2]
[334798100,1723579846484,-151.0,0.00014246,2]
[334798101,1723579846495,-151.0,0.00014246,2]
[334798102,1723579846506,-151.0,0.00014246,2]
[334798103,1723579846517,-151.0,0.00014246,2]
[334798104,1723579846526,-151.0,0.00014246,2]
[334798105,1723579846536,-151.0,0.00014246,2]
[334798106,1723579846545,-223.427159,0.00014246,2]
[334798107,1723579846555,-223.427159,0.00014246,2]
[334798108,1723579846564,-190.564051,0.00014246,2]
[334798109,1723579846574,-190.564051,0.00014246,2]
[334798110,1723579846584,-221.21541,0.00014246,2]
[334798111,1723579846594,-221.21541,0.00014246,2]
[334798112,1723579846604,-500.0,0.00014246,2]
[334798113,1723579846614,-1653.002827,0.00014246,2]
[334798114,1723579846623,-1653.002827,0.00014246,2]
[334798115,1723579846632,-224.887206,0.00014246,2]
[334798116,1723579846642,-500.0,0.00014246,2]
[334798117,1723579846653,-606.87017206,0.00014246,2]
[334798118,1723579846663,-168.356429,0.00014246,2]
[334798119,1723579846675,-168.356429,0.00014246,2]
[334798120,1723579846687,-151.0,0.00014246,2]
[334798121,1723579846698,-151.0,0.00014246,2]
[334798122,1723579846707,-1489.354474,0.00014246,2]
[334798123,1723579846718,-1489.354474,0.00014246,2]
[334798124,1723579846728,-500.0,0.00014246,2]
[334798125,1723579846738,-500.0,0.00014246,2]
[334798126,1723579846748,-500.0,0.00014246,2]
[334798127,1723579846757,-500.0,0.00014246,2]
[334798128,1723579846768,-972.100383,0.00014246,2]
[334798129,1723579846780,-995.536604,0.00014246,2]
[334798130,1723579846791,-995.536604,0.00014246,2]
[334798131,1723579846803,-793.54,0.00014246,2]
[334798132,1723579846814,-500.0,0.00014246,2]
[334798133,1723579846824,-243.4164176,0.00014246,2]
[334798134,1723579846834,-500.0,0.00014246,2]
[334798135,1723579846845,-500.0,0.00014246,2]
[334798136,1723579846857,-500.0,0.00014246,2]
[334798137,1723579846867,-500.0,0.00014246,2]
[334798138,1723579846876,-500.0,0.00014246,2]
[334798139,1723579846886,-500.0,0.00014246,2]
[334798140,1723579846897,-500.0,0.00014246,2]
[334798141,1723579846907,-500.0,0.00014246,2]
[334798142,1723579846917,-500.0,0.00014246,2]
[334798144,1723579846927,-500.0,0.00014246,2]
[334798145,1723579846938,-500.0,0.00014246,2]
[334798146,1723579846949,-500.0,0.00014246,2]
[334798147,1723579846960,-500.0,0.00014246,2]
[334798148,1723579846971,-500.0,0.00014246,2]
[334798149,1723579846982,-500.0,0.00014246,2]
[334798151,1723579846991,-552.76,0.00014246,2]
[334798152,1723579847001,-500.0,0.00014246,2]
[334798153,1723579847012,-500.0,0.00014246,2]
[334798154,1723579847023,-1127.86,0.00014246,2]
[334798155,1723579847034,-500.0,0.00014246,2]
[334798157,1723579847043,-500.0,0.00014246,2]
[334798158,1723579847053,-500.0,0.00014246,2]
[334798159,1723579847062,-500.0,0.00014246,2]
[334798161,1723579847071,-500.0,0.00014246,2]
[334798163,1723579847081,-500.0,0.00014246,2]
[334798165,1723579847091,-1599.8,0.00014246,2]
[334798167,1723579847101,-61.06310663,0.00014246,2]
[334798186,1723579847657,-500.0,0.00013698,2]
[334798187,1723579847667,-500.0,0.00013972,2]
[334798188,1723579847676,-150.112233,0.000142,2]
[334798189,1723579847685,-680.55689337,0.00014246,2]
[334798190,1723579847695,-513.51,0.00014246,2]
[334798191,1723579847704,-704.01,0.00014246,2]
[334798192,1723579847713,-500.0,0.00014246,2]
[334798193,1723579847723,-500.0,0.00014246,2]
[334798194,1723579847733,-500.0,0.00014246,2]
[334798195,1723579847742,-500.0,0.00014246,2]
[334798196,1723579847752,-1730.45,0.00014246,2]
[334798197,1723579847761,-500.0,0.00014246,2]
[334798198,1723579847771,-500.0,0.00014246,2]
[334798199,1723579847781,-500.0,0.00014246,2]
[334798200,1723579847791,-500.0,0.00014246,2]
[334798201,1723579847801,-649.81,0.00014246,2]
[334798202,1723579847811,-1731.16,0.00014246,2]
[334798203,1723579847820,-500.0,0.00014246,2]
[334798204,1723579847830,-612.71,0.00014246,2]
[334798205,1723579847840,-500.0,0.00014246,2]
[334798206,1723579847849,-609.17331413,0.00014246,2]
[334798207,1723579847858,-500.0,0.00014246,2]
[334798208,1723579847867,-646.21,0.00014246,2]
[334798209,1723579847877,-500.0,0.00014246,2]
[334798210,1723579847886,-500.0,0.00014246,2]
[334798211,1723579847896,-500.0,0.00014246,2]
[334798212,1723579847906,-500.0,0.00014246,2]
[334798213,1723579847915,-578.07,0.00014246,2]
[334798214,1723579847926,-602.72,0.00014246,2]
[334798215,1723579847936,-151.0,0.00014246,2]
[334798216,1723579847946,-2213.88,0.00014246,2]
[334798217,1723579847955,-500.0,0.00014246,2]
[334798218,1723579847965,-680.25,0.00014246,2]
[334798219,1723579847975,-516.77,0.00014246,2]
[334798220,1723579847984,-500.0,0.00014246,2]
[334798221,1723579847994,-500.0,0.00014246,2]
[334798222,1723579848003,-500.0,0.00014246,2]
[334798223,1723579848013,-500.0,0.00014246,2]
[334798224,1723579848023,-674.55,0.00014246,2]
[334798225,1723579848032,-517.91,0.00014246,2]
[334798226,1723579848041,-3475.53,0.00014246,2]
[334798227,1723579848052,-925.09,0.00014246,2]
[334798228,1723579848062,-941.99,0.00014246,2]
[334798229,1723579848071,-1333.61,0.00014246,2]
[334798230,1723579848081,-3175.1,0.00014246,2]
[334798231,1723579848091,-877.34,0.00014246,2]
[334798232,1723579848101,-584.7,0.00014246,2]
[334798233,1723579848110,-500.0,0.00014246,2]
[334798234,1723579848120,-500.0,0.00014246,2]
[334798235,1723579848131,-500.0,0.00014246,2]
[334798236,1723579848141,-500.0,0.00014246,2]
[334798237,1723579848150,-990.3,0.00014246,2]
[334798238,1723579848160,-151.0,0.00014246,2]
[334798239,1723579848170,-552.42,0.00014246,2]
[334798240,1723579848179,-500.0,0.00014246,2]
[334798241,1723579848189,-500.0,0.00014246,2]
[334798242,1723579848203,-504.67,0.00014246,2]
[334798243,1723579848213,-500.0,0.00014246,2]
[334798244,1723579848222,-500.0,0.00014246,2]
[334798245,1723579848231,-581.74,0.00014246,2]
[334798246,1723579848241,-1832.878838,0.00014246,2]
[334798247,1723579848251,-500.0,0.00014246,2]
[334798248,1723579848261,-491.073598,0.00014247,2]
[334798249,1723579848271,-527.64604,0.00014247,2]
[334798250,1723579848282,-184.531573,0.00014247,2]
[334798251,1723579848292,-184.531573,0.00014247,2]
[334798252,1723579848301,-151.0,0.00014247,2]
[334798253,1723579848311,-1077.260719,0.00014247,2]
[334798254,1723579848320,-1077.260719,0.00014247,2]
[334798255,1723579848330,-151.0,0.00014247,2]
[334798256,1723579848341,-159.832493,0.00014247,2]
[334798257,1723579848352,-151.0,0.00014247,2]
[334798258,1723579848362,-159.832493,0.00014247,2]
[334798259,1723579848372,-1144.447742,0.00014247,2]
[334798260,1723579848382,-1144.447742,0.00014247,2]
[334798261,1723579848391,-1111.760975,0.00014247,2]
[334798262,1723579848401,-1111.760975,0.00014247,2]
[334798263,1723579848410,-1133.305617,0.00014247,2]
[334798264,1723579848419,-2052.074848,0.00014247,2]
[334798265,1723579848432,-2878.155826,0.00014247,2]
[334798266,1723579848441,-914.48120856,0.00014247,2]
[334798267,1723579848456,-218.82440844,0.00014247,2]
[334798268,1723579848466,-2878.155826,0.00014247,2]
[334798269,1723579848476,-2052.074848,0.00014247,2]
[334798270,1723579848486,-151.0,0.00014247,2]
[334798271,1723579848496,-151.0,0.00014247,2]
[334798272,1723579848505,-262.330646,0.00014247,2]
[334798273,1723579848515,-979.77829726,0.00014247,2]
[334798274,1723579848527,-645.69164251,0.00014247,2]
[334798293,1723580926726,399626.70253165,0.00024,60]
[334798404,1723581037964,-300.0,9.998e-05,2]
[334798405,1723581037973,-300.0,9.998e-05,2]
[334798406,1723581037983,-241.07709529,9.999e-05,2]
[334798407,1723581037994,-210.10628593,9.999e-05,2]
[334798408,1723581038004,-494.81071941,9.999e-05,2]
[334798409,1723581038013,-522.64205496,9.999e-05,2]
[334798410,1723581038023,-933.23052242,9.999e-05,2]
[334798411,1723581038033,-608.58295663,9.999e-05,2]
[334798412,1723581038042,-250.59023246,9.999e-05,2]
[334798413,1723581038052,-201.6440693,9.999e-05,2]
[334798414,1723581038061,-403.6504886,9.999e-05,2]
[334798415,1723581038070,-160.19095557,9.999e-05,2]
[334798416,1723581038080,-601.50902274,9.999e-05,2]
[334798417,1723581038089,-208.45077666,9.999e-05,2]
[334798418,1723581038099,-155.35583315,9.999e-05,2]
[334798419,1723581038108,-154.79103211,9.999e-05,2]
[334798420,1723581038118,-320.08358525,9.999e-05,2]
[334798421,1723581038128,-157.99537743,9.999e-05,2]
[334798422,1723581038138,-160.25825798,0.0001,2]
[334798423,1723581038147,-413.41235077,0.0001,2]
[334798424,1723581038156,-203.82880872,0.0001,2]
[334798425,1723581038166,-13730.09519661,0.00010915,2]
[334798426,1723581038190,-595.0,0.00010915,2]
[334798427,1723581038207,-9013.87221091,0.00010915,2]
[334798433,1723581039877,-1561.03259248,0.00010915,2]
[334798434,1723581039888,-420.0,0.00010998,2]